bitfinex-derivatives/quotes_ETHF0:USTF0_20241017
["timestamp","ask_amount","ask_price","bid_price","bid_amount"]
[1729174593322,0.38429,2602.8,2602.7,3.2078]
[1729174593837,0.38429,2602.8,2602.7,3.5921]
[1729174594034,0.38429,2602.8,2602.7,3.2078]
[1729174595231,0.9606,2603.2,2602.7,3.5921]
[1729174595439,0.38427,2603.0,2602.9,0.38427]
[1729174595832,0.38428,2602.9,2602.8,0.38429]
[1729174596029,1.85004637,2603.6,2602.7,3.2078]
[1729174596234,0.38429,2602.8,2602.7,3.2078]
[1729174598141,4.22669,2602.8,2602.7,3.2078]
[1729174598325,4.22669,2602.8,2602.1,3.2078]
[1729174598326,0.38438,2602.2,2602.1,3.2078]
[1729174598728,0.38438,2602.2,2602.1,3.5922]
[1729174599240,1.14246434,2602.8,2602.1,13.051]
[1729174599536,0.96078,2602.7,2602.1,3.2078]
[1729174599839,0.38437,2602.3,2602.2,0.38438]
[1729174600039,0.38433,2602.6,2602.5,0.38433]
[1729174600239,1.96781609,2602.9,2602.1,3.2078]
[1729174600445,1.00710609,2602.9,2602.4,3.2078]
[1729174600940,1.20918,2602.9,2602.7,0.3843]
[1729174601244,0.8249,2602.9,2602.7,0.38429]
[1729174601438,0.8249,2602.9,2602.5,0.38433]
[1729174601637,0.8249,2602.9,2602.1,3.2078]
[1729174601638,5.47562,2602.9,2602.1,3.2078]
[1729174601846,0.38438,2602.2,2602.1,3.2078]
[1729174602635,0.7935,2602.4,2601.8,3.2078]
[1729174602839,0.38444,2601.9,2601.8,3.2078]
[1729174604435,10.22764,2601.9,2601.8,3.2078]
[1729174604629,10.22764,2601.9,2600.7,9.75436439]
[1729174604630,0.3845,2601.4,2601.3,3.2078]
[1729174604829,0.38454,2601.1,2601.0,3.2078]
[1729174605537,0.3846,2600.7,2600.6,3.2078]
[1729174605857,3.8448,2600.7,2600.0,3.2078]
[1729174606140,3.69,2600.8,2600.0,3.2078]
[1729174606141,0.38469,2600.1,2600.0,3.2078]
[1729174606337,3.69,2600.5,2600.0,3.2078]
[1729174606636,0.38469,2600.1,2600.0,3.2078]
[1729174606834,0.8392,2600.6,2600.0,3.2078]
[1729174607030,0.96159,2600.5,2600.0,3.2078]
[1729174607235,0.8392,2600.6,2600.0,3.2078]
[1729174607742,0.38469,2600.1,2600.0,3.2078]
[1729174607950,0.8392,2600.6,2600.0,3.2078]
[1729174608730,0.38469,2600.2,2600.0,3.2078]
[1729174608932,0.38469,2600.1,2600.0,3.2078]
[1729174609137,1.80077,2600.6,2600.0,3.5925]
[1729174609138,0.38469,2600.2,2600.0,3.5925]
[1729174609936,1.80077,2600.6,2600.0,3.5925]
[1729174610139,0.38469,2600.2,2600.0,3.5925]
[1729174610746,0.8392,2600.6,2600.0,3.2078]
[1729174610936,0.38469,2600.1,2600.0,3.2078]
[1729174611446,0.38474,2599.8,2599.7,3.2078]
[1729174611941,0.38474,2599.8,2599.0,1.5903]
[1729174611942,0.38481,2599.3,2599.2,3.2078]
[1729174612845,0.38481,2599.4,2599.2,3.2078]
[1729174613347,0.773,2599.7,2599.2,3.2078]
[1729174613847,1.15776,2599.7,2599.2,3.2078]
[1729174614038,1.15776,2599.7,2599.4,0.38479]
[1729174614234,1.15776,2599.7,2599.2,3.2078]
[1729174614235,0.773,2599.7,2599.6,0.38477]
[1729174614444,0.38478,2599.5,2599.2,3.59262]
[1729174614639,0.773,2599.7,2599.2,3.2078]
[1729174614640,0.38481,2599.3,2599.2,3.2078]
[1729174614836,0.773,2599.7,2599.2,3.2078]
[1729174615039,0.773,2599.7,2599.5,0.38478]
[1729174615242,0.773,2599.7,2599.2,3.2078]
[1729174615437,1.15776,2599.7,2599.4,0.38479]
[1729174616454,1.15776,2599.7,2599.2,3.2078]
[1729174616749,0.773,2599.7,2599.3,0.38481]
[1729174616944,0.773,2599.7,2599.2,3.2078]
[1729174617147,1.15776,2599.7,2599.4,0.38479]
[1729174617547,0.38479,2599.5,2599.2,3.59262]
[1729174617745,0.38478,2599.6,2599.3,0.38481]
[1729174617939,0.38478,2599.5,2599.2,3.59262]
[1729174618450,0.773,2599.7,2599.2,3.2078]
[1729174618451,0.3848,2599.4,2599.2,3.2078]
[1729174618949,0.38481,2599.3,2599.2,3.2078]
[1729174619444,0.38481,2599.4,2599.2,3.59262]
[1729174619652,0.3848,2599.4,2599.2,3.59262]
[1729174619848,0.773,2599.7,2599.2,3.2078]
[1729174620151,0.38481,2599.3,2599.2,3.2078]
[1729174620352,0.3848,2599.4,2599.2,3.59262]
[1729174620649,0.38481,2599.3,2599.2,3.2078]
[1729174621442,4.23201,2599.3,2599.2,3.2078]
[1729174621644,0.3848,2599.4,2599.2,3.59262]
[1729174621844,4.463,2599.7,2599.2,3.2078]
[1729174622056,0.38472,2599.9,2599.7,0.38475]
[1729174622242,4.5262,2600.2,2599.5,3.2078]
[1729174622548,4.5262,2600.2,2599.9,0.38472]
[1729174622850,6.8978,2600.7,2599.8,4.16964]
[1729174622851,0.38464,2600.5,2599.8,4.16964]
[1729174623049,1.6229,2600.7,2600.1,3.2078]
[1729174623246,1.6229,2600.7,2600.4,3.2078]
[1729174623548,2.00751,2600.7,2600.4,3.59244]
[1729174623854,0.38463,2600.5,2600.4,3.2078]
[1729174624743,4.23023,2600.5,2600.4,3.2078]
[1729174625954,0.38472,2600.0,2599.8,3.2078]
[1729174626144,0.38469,2600.2,2599.9,0.38471]
[1729174626452,3.69,2600.3,2599.8,3.59252]
[1729174626453,0.3847,2600.1,2599.8,3.59252]
[1729174626645,0.38471,2600.0,2599.8,3.59252]
[1729174626847,0.3847,2600.1,2599.9,0.38472]
[1729174627047,0.3847,2600.1,2599.8,3.59252]
[1729174627254,9.69,2600.1,2599.4,3.2078]
[1729174627548,0.8193,2600.0,2599.4,3.2078]
[1729174627748,0.8193,2600.0,2599.7,3.2078]
[1729174627953,0.38472,2599.9,2599.7,3.2078]
[1729174628247,0.38472,2599.9,2598.9,1.5489]
[1729174628248,0.38478,2599.5,2599.4,3.2078]
[1729174628653,0.8201,2599.8,2599.4,3.2078]
[1729174628845,0.38475,2599.8,2599.5,0.38478]
[1729174629150,0.38474,2599.8,2599.4,3.59258]
[1729174629356,0.38472,2599.9,2599.4,3.59258]
[1729174629547,0.8193,2600.0,2599.4,3.59258]
[1729174629548,0.38476,2599.7,2599.4,3.59258]
[1729174629745,0.8193,2600.0,2599.4,3.2078]
[1729174630051,0.38466,2600.4,2600.0,0.3847]
[1729174630241,0.38467,2600.3,2600.0,3.2078]
[1729174630552,0.38469,2600.1,2600.0,3.2078]
[1729174631055,13.92109,2600.1,2600.0,3.2078]
[1729174631352,0.38478,2599.5,2599.4,3.2078]
[1729174631853,0.38482,2599.2,2599.1,3.2078]
[1729174632650,5.49721,2599.7,2599.1,3.2078]
[1729174632651,0.96193,2599.6,2599.1,3.2078]
[1729174632855,0.38482,2599.2,2599.1,3.2078]
[1729174633951,0.962,2599.4,2599.1,3.2078]
[1729174634149,0.38482,2599.2,2599.1,3.2078]
[1729174634548,0.38482,2599.2,2598.1,3.2078]
[1729174634549,0.38497,2598.2,2598.1,3.2078]
[1729174634749,3.69,2598.6,2598.1,3.8488]
[1729174634954,3.69,2598.6,2597.9,0.7466]
[1729174635248,3.69,2598.6,2598.0,0.385]
[1729174635249,0.38493,2598.5,2598.0,0.385]
[1729174635556,3.69,2598.6,2598.0,0.385]
[1729174635749,3.69,2598.6,2598.1,0.38499]
[1729174635750,0.38498,2598.2,2598.1,0.38499]
[1729174636351,3.2078,2598.8,2598.1,13.0566]
[1729174636651,4.17004,2598.8,2598.1,3.2078]
[1729174636953,0.96228,2598.7,2598.1,3.59278]
[1729174637159,0.38496,2598.3,2598.2,0.38497]
[1729174637554,0.38497,2598.2,2598.1,3.2078]
[1729174637852,0.38497,2598.2,2598.1,3.59279]
[1729174638454,0.96228,2598.7,2598.1,3.2078]
[1729174638657,0.96228,2598.7,2598.2,0.38496]
[1729174638854,0.38496,2598.3,2598.2,0.38496]
[1729174639155,0.96228,2598.7,2598.1,3.2078]
[1729174639356,0.38495,2598.4,2598.3,0.38495]
[1729174640053,4.99943,2598.8,2598.1,3.2078]
[1729174640054,4.0372,2598.8,2598.1,3.2078]
[1729174640250,4.0372,2598.8,2598.3,0.38496]
[1729174640251,0.38495,2598.4,2598.3,0.38496]
[1729174640853,0.96226,2598.7,2598.2,0.38497]
[1729174640854,0.38496,2598.3,2598.2,0.38497]
[1729174641153,0.38495,2598.4,2598.3,0.38495]
[1729174641542,4.0372,2598.8,2598.1,3.2078]
[1729174641947,0.38495,2598.4,2598.3,0.38495]
[1729174642158,4.0372,2598.8,2598.4,0.38494]
[1729174642159,0.38494,2598.5,2598.4,0.38494]
[1729174642559,0.38493,2598.6,2598.5,0.38493]
[1729174642858,0.38492,2598.6,2598.5,0.38492]
[1729174643156,4.0372,2598.8,2598.4,0.38493]
[1729174643157,0.38493,2598.5,2598.4,0.38493]
[1729174643355,0.38493,2598.6,2598.5,0.38493]
[1729174644048,0.38485,2599.1,2598.6,0.96229]
[1729174644248,0.38486,2599.0,2598.9,0.38487]
[1729174644456,0.8381,2599.3,2598.8,0.38488]
[1729174644747,0.8381,2599.3,2598.7,3.997]
[1729174644748,0.38486,2599.0,2598.7,3.997]
[1729174644949,0.8381,2599.3,2598.7,3.997]
[1729174645150,7.3328,2600.2,2599.0,6.8978]
[1729174645349,3.69,2600.3,2599.9,0.38471]
[1729174645552,3.69,2600.3,2599.8,3.2078]
[1729174645553,0.38467,2600.3,2600.1,0.38468]
[1729174645957,3.8866476,2600.5,2599.9,0.7892]
[1729174646254,0.38472,2599.9,2599.8,3.2078]
[1729174646767,0.38481,2599.3,2599.2,3.2078]
[1729174646945,3.69,2599.4,2598.9,0.99763041]
[1729174647259,3.69,2599.4,2598.8,4.70424562]
[1729174647260,0.38487,2598.9,2598.8,3.2078]
[1729174647564,3.69,2599.1,2598.4,4.20543041]
[1729174647748,0.38493,2598.5,2598.4,3.2078]
[1729174647949,0.38492,2598.6,2598.5,0.38492]
[1729174648144,3.69,2598.8,2598.4,3.2078]
[1729174648347,0.38493,2598.5,2598.4,3.59274]
[1729174648957,4.99897,2599.0,2598.4,3.59274]
[1729174648958,4.0368,2599.0,2598.4,3.2078]
[1729174649156,0.38491,2598.6,2598.5,0.38492]
[1729174649661,0.38493,2598.5,2598.4,3.59273]
[1729174649858,0.38492,2598.6,2598.5,0.38492]
[1729174650063,4.0368,2599.0,2598.4,4.20543041]
[1729174650365,4.0368,2599.0,2598.5,0.99763041]
[1729174650552,0.38491,2598.7,2598.5,0.99763041]
[1729174650748,0.38491,2598.7,2598.6,0.3849]
[1729174651059,4.0368,2599.0,2598.7,0.38489]
[1729174651060,0.38489,2598.8,2598.7,0.38489]
[1729174651261,4.0368,2599.0,2598.5,0.99763041]
[1729174651459,0.38491,2598.7,2598.6,0.38491]
[1729174651658,0.38489,2598.8,2598.7,0.38489]
[1729174651855,0.829,2599.0,2598.6,0.99763041]
[1729174652056,0.38485,2599.1,2599.0,0.38485]
[1729174652256,0.8129,2599.2,2598.8,3.2078]
[1729174652459,0.8129,2599.2,2598.8,4.20543041]
[1729174652460,0.38484,2599.2,2598.8,4.20543041]
[1729174652757,0.7859,2599.4,2598.9,0.8458]
[1729174652960,0.38481,2599.3,2599.1,0.38483]
[1729174653262,0.38481,2599.3,2598.9,0.8458]
[1729174653263,0.38482,2599.3,2599.2,0.38482]
[1729174653759,0.7859,2599.4,2598.9,0.8458]
[1729174653967,0.38483,2599.2,2599.0,0.38485]
[1729174654162,0.7859,2599.4,2598.9,0.8458]
[1729174654368,0.38484,2599.1,2598.9,0.8458]
[1729174654553,4.4759,2599.4,2598.7,0.99763041]
[1729174654859,0.38489,2598.8,2598.6,0.38491]
[1729174655067,3.69,2599.1,2598.5,4.59035041]
[1729174655068,0.38491,2598.7,2598.5,4.59035041]
[1729174655257,3.69,2599.1,2598.5,4.20543041]
[1729174655462,0.96214,2599.0,2598.5,3.2078]
[1729174655664,0.3849,2598.7,2598.5,3.59272]
[1729174656061,0.38491,2598.6,2598.5,3.2078]
[1729174656460,3.69,2598.6,2598.0,5.04533041]
[1729174656658,1.6169,2598.5,2598.1,3.2078]
[1729174656861,0.38491,2598.7,2598.5,0.38492]
[1729174657769,0.38491,2598.7,2598.5,0.38493]
[1729174657962,3.69,2598.9,2598.4,3.2078]
[1729174658164,0.3849,2598.7,2598.5,0.38492]
[1729174658663,0.38486,2599.0,2598.8,0.38487]
[1729174658868,1.6169,2599.1,2598.4,4.17015]
[1729174659077,0.38487,2598.9,2598.7,0.38489]
[1729174659362,1.6169,2599.1,2598.4,4.17015]
[1729174659363,1.6169,2599.1,2598.4,3.2078]
[1729174659558,0.38487,2599.0,2598.8,0.38488]
[1729174659958,1.6169,2599.1,2598.4,3.2078]
[1729174660168,0.38489,2598.8,2598.6,0.38491]
[1729174660371,1.6169,2599.1,2598.4,3.2078]
[1729174660769,1.6169,2599.1,2598.6,0.3849]
[1729174660770,0.38488,2598.8,2598.6,0.3849]
[1729174661671,1.6169,2599.1,2598.4,3.2078]
[1729174661967,0.38487,2599.0,2598.8,0.38488]
[1729174662272,0.38487,2598.9,2598.7,0.38489]
[1729174662571,1.6169,2599.1,2598.4,4.17015]
[1729174662876,1.6169,2599.1,2598.1,0.8142]
[1729174662877,5.0508,2599.7,2599.0,3.2078]
[1729174663063,0.7923,2599.6,2599.0,4.16992]
[1729174663262,0.38479,2599.5,2599.1,0.38484]
[1729174663469,0.38479,2599.5,2599.3,0.3848]
[1729174663660,0.38483,2599.2,2599.0,3.59265]
[1729174663864,0.38482,2599.3,2599.1,0.38483]
[1729174664156,0.3848,2599.4,2599.1,0.38483]
[1729174664369,0.38482,2599.3,2599.1,0.38484]
[1729174665063,3.69,2599.5,2599.0,3.2078]
[1729174665375,0.7923,2599.6,2599.5,0.38478]
[1729174665579,0.8186,2599.8,2599.3,0.96203]
[1729174665765,0.38471,2600.0,2599.8,0.38473]
[1729174666070,0.8469,2600.1,2600.0,0.38471]
[1729174666763,3.69,2600.8,2600.3,0.38466]
[1729174666963,0.38463,2600.6,2600.1,0.38469]
[1729174667162,0.38463,2600.6,2600.0,3.2078]
[1729174667368,0.8469,2600.7,2600.0,4.98766]
[1729174667568,0.8469,2600.7,2600.0,4.0259]
[1729174667780,0.38465,2600.4,2600.2,0.38467]
[1729174668276,0.8469,2600.7,2600.3,0.38466]
[1729174668474,0.38463,2600.6,2600.3,0.38465]
[1729174668780,0.8469,2600.7,2600.3,3.2078]
[1729174669073,0.8469,2600.7,2600.5,0.38463]
[1729174669074,1.23151,2600.7,2600.5,0.38463]
[1729174669573,0.8469,2600.7,2600.5,0.38463]
[1729174669870,1.2315,2600.7,2600.5,0.38463]
[1729174670177,0.38457,2601.0,2600.7,0.3846]
[1729174670367,0.38456,2601.0,2600.8,0.38458]
[1729174670570,4.054,2601.2,2600.6,3.2078]
[1729174670776,0.38457,2601.0,2600.7,0.38459]
[1729174671072,4.054,2601.2,2600.7,0.38459]
[1729174671073,0.8462,2601.2,2600.7,0.38459]
[1729174671373,0.38458,2600.9,2600.6,3.59241]
[1729174671576,0.38459,2600.8,2600.6,3.59241]
[1729174671769,0.8462,2601.2,2600.2,3.69]
[1729174671770,4.5362,2601.2,2600.2,3.2078]
[1729174671969,4.5362,2601.2,2600.7,0.3846]
[1729174671970,0.38457,2601.0,2600.7,0.3846]
[1729174672274,0.38458,2600.9,2600.6,0.38461]
[1729174672569,4.5362,2601.2,2600.2,3.2078]
[1729174672570,3.2078,2601.1,2600.2,3.2078]
[1729174672775,0.38462,2600.6,2600.3,0.38466]
[1729174672976,0.38462,2600.6,2600.2,3.2078]
[1729174673173,0.38462,2600.6,2600.4,0.38465]
[1729174673568,3.2078,2601.1,2600.2,3.2078]
[1729174673766,0.3846,2600.8,2600.6,0.38462]
[1729174674168,3.2078,2601.1,2600.5,0.38462]
[1729174674366,3.2078,2601.1,2600.2,3.2078]
[1729174674572,0.38462,2600.6,2600.4,0.38464]
[1729174674768,0.38457,2600.9,2600.4,0.38464]
[1729174674969,0.38461,2600.7,2600.5,0.38462]
[1729174675370,0.9614,2601.0,2600.5,0.38462]
[1729174675768,0.38462,2600.6,2600.4,0.38463]
[1729174675971,0.9614,2601.0,2600.2,3.2078]
[1729174676174,0.3846,2600.8,2600.2,4.16948]
[1729174676376,3.2078,2601.1,2600.2,4.16948]
[1729174676377,0.38457,2601.0,2600.5,3.2078]
[1729174676564,0.38457,2601.0,2600.9,0.38457]
[1729174676770,0.8462,2601.2,2600.9,0.38457]
[1729174676976,0.8462,2601.2,2601.1,0.38454]
[1729174677282,0.38455,2601.1,2600.9,0.38456]
[1729174677668,0.8462,2601.2,2600.8,3.59238]
[1729174677669,0.38457,2601.0,2600.8,3.59238]
[1729174677872,0.8462,2601.2,2600.8,0.38458]
[1729174678076,0.38459,2600.8,2600.7,0.3846]
[1729174678379,0.38456,2601.0,2600.7,3.2078]
[1729174678571,0.38459,2600.8,2600.7,3.59239]
[1729174678767,4.5362,2601.2,2600.6,0.8499]
[1729174679078,0.38461,2600.7,2600.6,0.38462]
[1729174679273,0.38462,2600.6,2600.5,0.38463]
[1729174679475,0.38463,2600.5,2600.4,3.2078]
[1729174681187,13.5356,2600.5,2599.8,0.38473]
[1729174681371,13.5356,2600.5,2599.7,4.8268]
[1729174681372,0.38474,2599.8,2599.7,3.2078]
[1729174681569,0.38479,2599.5,2599.4,0.38479]
[1729174681772,0.96184,2599.9,2599.4,0.38479]
[1729174682085,0.38478,2599.6,2599.5,0.38477]
[1729174682375,0.96179,2600.0,2599.3,3.2078]
[1729174682578,3.69,2599.9,2599.3,3.2078]
[1729174682783,0.3848,2599.4,2599.3,3.59261]
[1729174682972,0.96185,2599.8,2599.3,3.2078]
[1729174683285,0.38476,2599.7,2599.6,0.38475]
[1729174683888,0.38479,2599.5,2599.4,0.38478]
[1729174684075,0.38478,2599.6,2599.5,0.38478]
[1729174684275,0.38479,2599.5,2599.4,0.38479]
[1729174684471,0.3848,2599.4,2599.3,3.2078]
[1729174684675,0.38485,2599.0,2598.9,0.38486]
[1729174685277,0.38484,2599.2,2599.1,0.38483]
[1729174685480,0.8444,2599.6,2599.0,3.2078]
[1729174685680,0.8335,2599.9,2599.2,3.2078]
[1729174685980,6.8978,2599.7,2598.9,3.2078]
[1729174686180,0.38485,2599.0,2598.9,3.2078]
[1729174688375,0.8471,2599.1,2598.5,3.2078]
[1729174688585,0.8471,2599.1,2598.9,0.38486]
[1729174688884,1.23195,2599.1,2598.8,3.2078]
[1729174689082,1.23195,2599.1,2598.9,0.38486]
[1729174689470,0.8471,2599.1,2598.8,3.2078]
[1729174689678,1.23195,2599.1,2598.9,0.38487]
[1729174689885,0.8471,2599.1,2598.9,0.38487]
[1729174690181,1.23195,2599.1,2598.9,0.38486]
[1729174690386,1.23195,2599.1,2598.8,0.38487]
[1729174690678,1.23195,2599.1,2598.5,3.9808]
[1729174690883,1.23195,2599.1,2598.9,0.38486]
[1729174690884,0.8471,2599.1,2598.9,0.38486]
[1729174691079,0.8471,2599.1,2598.5,0.773]
[1729174691284,0.38489,2598.8,2598.2,4.0337]
[1729174691486,0.8471,2599.1,2598.2,4.0337]
[1729174691487,3.69,2598.9,2598.2,4.0337]
[1729174691685,4.6522,2598.9,2597.9,4.0433]
[1729174691983,3.69,2598.7,2597.9,4.0433]
[1729174692186,0.96229,2598.6,2598.1,0.38499]
[1729174692381,0.38497,2598.2,2598.1,0.38499]
[1729174692882,0.38496,2598.3,2598.2,0.38497]
[1729174693185,0.96216,2599.0,2598.2,3.2078]
[1729174693372,0.38495,2598.4,2598.3,0.38496]
[1729174693577,0.96222,2598.8,2598.2,3.2078]
[1729174693777,6.8978,2598.9,2598.2,3.2078]
[1729174694089,0.38492,2598.6,2598.5,0.38492]
[1729174694283,1.6611,2599.1,2598.5,3.2078]
[1729174694478,0.8471,2599.1,2599.0,0.38485]
[1729174694681,1.23195,2599.1,2598.9,0.38487]
[1729174694883,1.23195,2599.1,2598.9,0.38486]
[1729174696083,1.23195,2599.1,2598.8,3.2078]
[1729174696489,1.23195,2599.1,2598.6,2.60458]
[1729174696891,1.23195,2599.1,2599.0,0.38485]
[1729174697090,0.8471,2599.1,2599.0,0.38485]
[1729174697286,0.3848,2599.4,2598.9,0.96218]
[1729174697486,0.3848,2599.4,2599.2,0.38482]
[1729174697687,1.98249,2599.5,2599.4,0.3848]
[1729174697883,1.98249,2599.5,2599.3,0.3848]
[1729174698590,1.5977,2599.5,2599.4,0.3848]
[1729174698787,3.2078,2599.8,2599.7,0.38475]
[1729174699888,3.2078,2599.8,2599.4,0.38479]
[1729174700081,0.3848,2599.4,2599.1,3.2078]
[1729174700282,0.3848,2599.4,2599.3,0.38481]
[1729174700694,0.3848,2599.4,2599.1,3.2078]
[1729174700695,0.7799,2599.7,2599.1,3.2078]
[1729174700884,0.38482,2599.2,2599.1,3.2078]
[1729174701187,4.65197,2599.5,2598.7,1.5973]
[1729174701188,0.96201,2599.4,2598.7,1.5973]
[1729174701382,0.38487,2599.0,2598.8,0.38488]
[1729174701579,0.38487,2598.9,2598.7,0.38489]
[1729174701795,1.34695,2599.1,2598.6,3.5927]
[1729174701984,0.3849,2598.7,2598.6,3.2078]
[1729174702286,1.70421,2599.1,2598.6,3.2078]
[1729174702488,1.70421,2599.1,2598.7,0.3849]
[1729174702489,0.38489,2598.8,2598.7,0.3849]
[1729174702791,0.3849,2598.7,2598.6,3.2078]
[1729174702992,1.70421,2599.1,2598.6,3.2078]
[1729174703288,0.3849,2598.8,2598.7,0.3849]
[1729174703696,0.3849,2598.7,2598.6,3.5927]
[1729174703994,0.3849,2598.7,2598.6,3.2078]
[1729174704887,2.51631,2599.1,2598.6,3.2078]
[1729174705087,0.38489,2598.8,2598.7,0.3849]
[1729174705285,1.5542,2599.1,2598.6,3.2078]
[1729174705485,0.38488,2598.9,2598.7,0.38489]
[1729174705886,0.38485,2599.0,2598.9,0.38486]
[1729174706090,0.7421,2599.1,2598.6,4.17008]
[1729174706295,3.59263,2599.2,2598.7,0.96224]
[1729174706484,0.38481,2599.3,2599.1,0.38483]
[1729174706789,0.7621,2599.4,2599.0,4.16994]
[1729174706984,1.1469,2599.4,2599.0,3.2078]
[1729174707188,0.7621,2599.4,2599.3,0.38481]
[1729174707388,1.1469,2599.4,2599.3,0.38481]
[1729174707690,0.7621,2599.4,2599.3,0.38481]
[1729174707886,3.69,2599.7,2599.0,4.16994]
[1729174707887,0.38478,2599.6,2599.4,0.38478]
[1729174708089,3.2078,2599.8,2599.7,0.38475]
[1729174708289,1.12893,2599.9,2599.5,0.38478]
[1729174708290,0.7442,2599.9,2599.5,0.38478]
[1729174708480,0.38476,2599.7,2599.5,0.38478]
[1729174708793,0.38476,2599.7,2599.6,0.38477]
[1729174709391,0.38474,2599.8,2599.6,0.38475]
[1729174710090,0.7442,2599.9,2599.7,0.38475]
[1729174710289,0.7442,2599.9,2599.4,3.2078]
[1729174710487,0.38474,2599.8,2599.4,3.2078]
[1729174710803,0.7442,2599.9,2599.4,3.2078]
[1729174710998,44.49,2600.6,2599.8,0.38474]
[1729174711294,0.38468,2600.2,2600.1,0.38468]
[1729174711491,4.65156,2600.6,2599.8,0.38474]
[1729174711682,0.38468,2600.2,2599.7,3.2078]
[1729174711888,0.38471,2600.0,2599.9,0.38472]
[1729174712088,4.65167,2600.3,2599.6,0.751]
[1729174712288,5.2842,2600.3,2599.6,0.751]
[1729174712485,3.69,2600.0,2599.4,3.2078]
[1729174712689,3.69,2600.0,2599.6,0.38476]
[1729174713004,3.69,2600.0,2599.4,3.2078]
[1729174713187,0.38478,2599.5,2599.4,3.59259]
[1729174713588,4.07478,2599.5,2599.4,3.2078]
[1729174713791,7.85966,2599.8,2599.4,3.2078]
[1729174714094,0.38478,2599.5,2599.4,3.2078]
[1729174714592,0.38478,2599.5,2599.4,3.5926]
[1729174714791,0.38478,2599.5,2599.4,3.2078]
[1729174714997,0.38478,2599.5,2599.4,3.5926]
[1729174715494,1.15586,2599.7,2599.6,0.38477]
[1729174715692,3.2078,2599.8,2599.7,0.38475]
[1729174715898,0.38472,2600.0,2599.7,3.2078]
[1729174716085,0.38472,2600.0,2599.9,0.38472]
[1729174716489,0.7711,2600.2,2599.6,3.2078]
[1729174716796,0.38472,2600.0,2599.8,0.38473]
[1729174716992,0.38472,2600.0,2599.5,1.73885]
[1729174716993,0.38474,2599.8,2599.7,0.38475]
[1729174717496,1.73281,2600.2,2599.5,0.7769]
[1729174717688,0.38475,2599.7,2599.6,0.38476]
[1729174717888,0.38475,2599.8,2599.6,0.38475]
[1729174718191,3.69,2600.0,2599.3,3.2078]
[1729174718388,0.38477,2599.6,2599.5,0.38478]
[1729174718989,0.96182,2599.9,2599.4,0.38479]
[1729174719186,0.38475,2599.7,2599.3,3.5926]
[1729174719382,0.3848,2599.5,2599.4,0.3848]
[1729174719588,0.96182,2599.9,2599.3,3.2078]
[1729174719791,0.3848,2599.4,2599.3,3.2078]
[1729174720195,0.3848,2599.4,2599.3,3.59261]
[1729174720698,1.18459,2599.5,2599.4,0.3848]
[1729174720896,6.8978,2600.0,2599.3,3.2078]
[1729174721096,4.0076,2600.0,2599.3,3.2078]
[1729174721301,4.0076,2600.0,2599.6,0.38475]
[1729174721302,0.38475,2599.7,2599.6,0.38475]
[1729174721795,4.0076,2600.0,2599.3,4.16982]
[1729174721998,0.38475,2599.7,2599.6,0.38476]
[1729174722297,7.6976,2600.0,2599.3,3.2078]
[1729174722691,0.38475,2599.8,2599.6,0.38475]
[1729174722890,0.38475,2599.8,2599.7,0.38475]
[1729174722891,0.38474,2599.8,2599.7,0.38475]
[1729174723087,0.38474,2599.8,2599.4,0.962]
[1729174723088,0.38473,2599.9,2599.4,0.962]
[1729174723290,0.7998,2600.0,2599.6,3.2078]
[1729174723700,1.18451,2600.0,2599.9,0.38472]
[1729174724391,0.38472,2599.9,2599.8,0.38473]
[1729174724690,1.18452,2600.0,2599.8,0.38473]
[1729174724896,1.18452,2600.0,2599.9,0.38472]
[1729174724897,1.18451,2600.0,2599.9,0.38472]
[1729174725091,0.7998,2600.0,2599.6,3.2078]
[1729174725297,1.18452,2600.0,2599.9,0.38472]
[1729174725694,1.18452,2600.0,2599.6,3.2078]
[1729174725695,0.7998,2600.0,2599.6,3.2078]
[1729174725900,0.38473,2599.9,2599.8,0.38473]
[1729174726491,0.3847,2600.1,2600.0,0.38471]
[1729174726696,3.69,2600.2,2599.7,2.51497]
[1729174726902,0.38469,2600.1,2600.0,0.3847]
[1729174727609,0.7385,2600.4,2600.1,0.38468]
[1729174727908,0.3847,2600.1,2600.0,0.3847]
[1729174729702,1.70013,2600.4,2599.7,1.93784]
[1729174729703,0.38474,2599.8,2599.7,1.93784]
[1729174729899,0.38474,2599.8,2599.7,0.7496]
[1729174730105,0.38476,2599.7,2599.6,0.38476]
[1729174730906,4.6517,2600.2,2599.3,2.48653]
[1729174730907,3.69,2600.2,2599.5,3.2078]
[1729174731101,0.38473,2600.0,2599.9,0.38471]
[1729174731305,0.38473,2600.0,2599.5,3.2078]
[1729174731306,4.65171,2600.2,2599.5,4.16975]
[1729174731613,0.38475,2599.8,2599.7,0.38474]
[1729174732200,0.3848,2599.4,2599.3,0.7688]
[1729174732401,0.3848,2599.4,2599.2,3.2078]
[1729174732402,0.38481,2599.3,2599.2,3.2078]
[1729174734103,1.16241,2599.3,2599.2,3.2078]
[1729174734603,4.4907,2599.7,2599.2,3.2078]
[1729174734802,0.38481,2599.3,2599.2,3.59262]
[1729174735009,0.3848,2599.4,2599.3,0.38481]
[1729174735314,0.38479,2599.5,2599.3,0.38481]
[1729174735806,4.4907,2599.7,2599.2,3.2078]